[Event "1st Bangalore GM-Open-A 2024"]
[Site "Bangalore"]
[Date "2024.01.18"]
[Round "1.13"]
[White "Shyam, Sundar M."]
[Black "Sobh, Amrou"]
[Result "1/2-1/2"]
[ECO "D02"]
[WhiteElo "2497"]
[BlackElo "2117"]
[Annotator "TA"]
[PlyCount "167"]
[EventDate "2024.01.20"]
[EventType "swiss"]
[EventCountry "IND"]
[SourceTitle "playchess.com"]
[Source "ChessBase"]
[SourceQuality "1"]
[TimeControl "5400+30"]

{[%evp 16,167,22,22,22,24,25,22,43,43,60,60,62,43,60,26,69,19,41,36,39,35,38,21,32,16,13,10,21,9,8,0,0,0,14,12,25,5,23,-1,-1,0,-2,-22,21,8,61,58,57,56,51,0,0,0,0,-18,-18,-18,-17,-20,-18,-16,-22,-23,-20,-11,-12,-11,-12,-32,-12,-16,0,0,0,0,0,0,0,0,0,0,0,0,0,0,0,0,0,0,0,0,0,0,0,0,0,0,0,0,0,0,0,0,0,0,0,0,0,0,0,0,0,0,0,0,0,0,0,0,0,0,0,0,0,0,0,0,0,0,0,0,0,0,0,0,0,0,0,0,0,0,0,0,0,0,0,0,0,0,0,0,0,0]} 1. d4 {[%emt 0:00:03]} d5 {[%emt 0:18:12]} 2. Bf4 {[%emt 0:00:17]} Nf6 {[%emt 0:00:42]} 3. e3 {[%emt 0:00:04]} e6 {[%emt 0:00:50]} 4. Nf3 {[%emt 0:00:15]} c5 {[%emt 0:00:26]} 5. c3 {[%emt 0:00:10]} Nc6 {[%emt 0:00:59]} 6. Nbd2 {[%emt 0:00:22]} Bd6 {[%emt 0:00:34]} 7. Bg3 {[%emt 0:00:26]} Bxg3 {[%emt 0:01:58]} 8. hxg3 {[%emt 0:00:03]} Qd6 {[%emt 0:00:48]} 9. Bb5 {[%emt 0:02:44]} Bd7 {[%emt 0:00:21] D02: 1 d4 d5 2 Nf3 sidelines, including 2...Nf6 3 g3 and 2...Nf6 3 Bf4.} 10. Bxc6 {[%emt 0:00:12]} Bxc6 {[%emt 0:01:28]} 11. Ne5 {[%emt 0:00:05]} cxd4 {[%emt 0:01:47]} 12. exd4 {[%emt 0:00:08]} Qc7 {[%emt 0:01:35]} 13. g4 {[%emt 0:04:48]} Nd7 {[%emt 0:00:57] [#]} 14. Nxd7 $146 {[%emt 0:01:06]} ({Predecessor:} 14. Ndf3 Nxe5 15. Nxe5 O-O-O 16. Qd3 {½-½ Heinzel,O (2321)-Schelvis,R (2113) Ghent Eastman op 42nd 2019 (7)}) 14... Kxd7 {[%emt 0:03:27]} 15. Qf3 {[%emt 0:01:01]} Raf8 {[%emt 0:01:45] Black is weak on the dark squares} 16. O-O-O {[%emt 0:01:30] White is more active.} (16. g5 $14) 16... Qd8 {[%emt 0:00:52]} 17. Qe3 {[%emt 0:00:23]} h6 $1 {[%emt 0:02:04]} 18. Nf3 {[%emt 0:01:33]} Kc8 {[%emt 0:00:30]} 19. Rh5 {[%emt 0:04:24]} Rhg8 {[%emt 0:01:55]} 20. Rdh1 {[%emt 0:01:04]} Qd6 {[%emt 0:01:02]} (20... Qc7 {simplifies} 21. Re1 Bb5 22. g5 hxg5 23. Nxg5 a5) 21. Qe5 {[%emt 0:20:05]} (21. Re1 {simplifies} b6 22. g5 hxg5 23. Qxg5 f6 24. Qg4) 21... Kd7 {[%emt 0:01:34]} (21... Qe7 {simplifies} 22. Re1 Re8 23. g5 hxg5 24. Qxg5 f6) 22. Re1 {[%emt 0:06:53]} f6 {[%emt 0:01:35]} 23. Qe3 {[%emt 0:00:26]} Re8 {[%emt 0:03:29]} 24. Nh4 {[%emt 0:06:32]} Kc7 {[%emt 0:00:50]} (24... Bb5 $5 {[%cal Rd6a6]}) 25. Ng6 {[%emt 0:01:09]} Bd7 {[%emt 0:01:33]} 26. Rhh1 {[%emt 0:01:15]} Rc8 {[%emt 0:01:53]} 27. g3 {[%emt 0:01:24]} Rge8 {[%emt 0:00:40]} 28. Kb1 {[%emt 0:01:28]} Kb8 {[%emt 0:01:25]} 29. f4 {[%emt 0:00:43]} Rcd8 {[%emt 0:04:18]} 30. Ka1 {[%emt 0:00:53]} Rc8 {[%emt 0:00:23]} ({Better is} 30... Bb5 $11) 31. g5 $14 {[%emt 0:01:41]} hxg5 {[%emt 0:01:25]} 32. fxg5 {[%emt 0:00:02]} Bb5 {[%emt 0:03:50]} 33. Qf4 {[%emt 0:08:19]} (33. g4 $14) 33... Qxf4 $11 {[%emt 0:06:25]} 34. Nxf4 {[%emt 0:00:33]} e5 $1 {[%emt 0:03:06]} 35. dxe5 {[%emt 0:14:37]} fxe5 {[%emt 0:04:44]} 36. Nxd5 {[%emt 0:06:48]} Bc6 {[%emt 0:00:20]} 37. c4 {[%emt 0:02:50]} Bxd5 {[%emt 0:00:36]} 38. cxd5 {[%emt 0:00:02][%mdl 4096] Endgame KRR-KRR} Rcd8 {[%emt 0:00:19]} 39. Rd1 {[%emt 0:05:10]} Kc7 {[%emt 0:01:18][%mdl 1024] Black has compensation.} 40. Rhf1 {[%emt 0:02:22]} Re7 {[%emt 0:05:05]} 41. Kb1 {[%emt 0:00:22]} Kd6 {[%emt 0:00:31]} 42. g6 {[%emt 0:04:15]} Rc8 {[%emt 0:02:50]} 43. Rf3 {[%emt 0:00:01] The position is equal.} e4 {[%emt 0:03:23]} 44. Rf7 {[%emt 0:01:19]} Rxf7 {[%emt 0:01:43]} 45. gxf7 {[%emt 0:00:01] KR-KR} Rf8 {[%emt 0:00:01]} 46. Rf1 {[%emt 0:00:32]} Kxd5 {[%emt 0:01:41]} 47. Kc2 {[%emt 0:01:27]} Ke6 {[%emt 0:00:13]} 48. Rf4 {[%emt 0:00:26]} Rxf7 {[%emt 0:00:51]} 49. Rxe4+ {[%emt 0:00:02]} Kd5 {[%emt 0:00:58]} 50. Rg4 {[%emt 0:00:08]} b6 {[%emt 0:02:00]} 51. Kc3 {[%emt 0:00:41]} a5 {[%emt 0:01:19]} 52. a4 {[%emt 0:00:25]} Rf3+ {[%emt 0:01:04]} 53. Kc2 {[%emt 0:00:00]} Rf2+ {[%emt 0:00:25]} 54. Kb3 {[%emt 0:00:01]} Rf3+ {[%emt 0:00:22]} 55. Ka2 {[%emt 0:00:01]} Rf7 {[%emt 0:00:19]} 56. Rg6 {[%emt 0:00:10]} Kc5 {[%emt 0:00:21]} 57. Ka3 {[%emt 0:01:59]} Re7 {[%emt 0:00:35]} 58. b3 {[%emt 0:00:47]} Rf7 {[%emt 0:01:34]} 59. g4 {[%emt 0:00:48]} Rd7 {[%emt 0:01:46]} 60. Kb2 {[%emt 0:00:09]} Rf7 {[%emt 0:00:31]} 61. Ka3 {[%emt 0:01:05]} Rd7 {[%emt 0:00:22]} 62. Rg5+ {[%emt 0:00:48]} Kc6 {[%emt 0:00:05]} 63. Kb2 {[%emt 0:00:17]} Rf7 {[%emt 0:00:35]} 64. Kc3 {[%emt 0:01:25]} Rf3+ {[%emt 0:00:14]} 65. Kc4 {[%emt 0:00:01]} Rf4+ {[%emt 0:00:32]} 66. Kd3 {[%emt 0:00:01]} Rf3+ {[%emt 0:00:32]} 67. Kc2 {[%emt 0:00:22]} Rf2+ {[%emt 0:00:44]} 68. Kc1 {[%emt 0:00:22]} Rf3 {[%emt 0:01:39]} 69. Kb2 {[%emt 0:00:19]} Rf2+ {[%emt 0:00:16]} 70. Ka3 {[%emt 0:00:01]} Rf7 {[%emt 0:00:23]} 71. Rg6+ {[%emt 0:01:42]} Kc5 {[%emt 0:00:04]} 72. g5 {[%emt 0:01:14]} Rd7 {[%emt 0:01:01]} 73. Kb2 {[%emt 0:00:38]} Rf7 {[%emt 0:00:36]} 74. Kc3 {[%emt 0:00:26]} Rf3+ {[%emt 0:00:17]} 75. Kc2 {[%emt 0:00:03]} Rf2+ {[%emt 0:01:02]} 76. Kd3 {[%emt 0:00:01]} Rf3+ {[%emt 0:00:15]} 77. Kc2 {[%emt 0:00:39]} Rf2+ {[%emt 0:00:12]} 78. Kc3 {[%emt 0:00:01]} Rf3+ {[%emt 0:00:54]} 79. Kb2 {[%emt 0:00:01]} Rf2+ {[%emt 0:00:31]} 80. Ka3 {[%emt 0:00:01]} Rf7 {[%emt 0:00:36]} 81. Re6 {[%emt 0:00:18]} Rf5 {[%emt 0:00:02]} 82. Rg6 {[%emt 0:00:14]} Rf7 {[%emt 0:00:19]} 83. Re6 {[%emt 0:03:44]} Rf5 {[%emt 0:00:15]} 84. Rg6 {[%emt 0:00:02] Weighted Error Value: White=0.07 (flawless) /Black=0.07 (flawless)} 1/2-1/2

[Event "1st Bangalore GM-Open-A 2024"]
[Site "Bangalore"]
[Date "2024.01.18"]
[Round "1.14"]
[White "Gandhi, Anish"]
[Black "Savchenko, Boris"]
[Result "0-1"]
[ECO "B96"]
[WhiteElo "2117"]
[BlackElo "2489"]
[Annotator "RC"]
[PlyCount "84"]
[EventDate "2024.01.20"]
[EventType "swiss"]
[EventCountry "IND"]
[SourceTitle "playchess.com"]
[Source "ChessBase"]
[SourceQuality "1"]
[TimeControl "5400+30"]

1. e4 {[%emt 0:00:08]} c5 {[%emt 0:00:28]} 2. Nf3 {[%emt 0:00:16]} d6 {[%emt 0:00:14]} 3. d4 {[%emt 0:00:13]} cxd4 {[%emt 0:00:08]} 4. Nxd4 {[%emt 0:00:06]} Nf6 {[%emt 0:00:04]} 5. Nc3 {[%emt 0:00:06]} a6 {[%emt 0:00:05]} 6. Bg5 {[%emt 0:00:31]} e6 {[%emt 0:00:09]} 7. f4 {[%emt 0:00:12]} h6 {[%emt 0:00:40]} 8. Bh4 {[%emt 0:00:12]} Qb6 {[%emt 0:00:05]} 9. a3 {[%emt 0:00:37]} Be7 {[%emt 0:00:36]} 10. Bf2 {[%emt 0:01:31]} Qc7 {[%emt 0:02:36]} 11. Qf3 {[%emt 0:00:14]} Nc6 {[%emt 0:00:09]} 12. h3 {[%emt 0:07:39]} Nxd4 {[%emt 0:07:14]} 13. Bxd4 {[%emt 0:00:09]} e5 {[%emt 0:00:05]} 14. Be3 {[%emt 0:02:36]} exf4 {[%emt 0:00:23]} 15. Bxf4 {[%emt 0:00:41]} Be6 {[%emt 0:02:03]} 16. O-O-O {[%emt 0:06:12]} O-O {[%emt 0:04:05]} 17. Bd3 {[%emt 0:07:15]} Rae8 {[%emt 0:14:36]} 18. Nd5 {[%emt 0:04:36]} Bxd5 {[%emt 0:06:01]} 19. exd5 {[%emt 0:00:12]} Nd7 {[%emt 0:00:35]} 20. Qg3 {[%emt 0:03:49]} Kh8 {[%emt 0:00:22]} 21. Rhe1 {[%emt 0:02:32]} Ne5 {[%emt 0:00:43]} 22. Bxe5 {[%emt 0:06:13]} dxe5 {[%emt 0:00:13]} 23. Kb1 {[%emt 0:01:35]} Bd6 {[%emt 0:01:12]} 24. Qg4 {[%emt 0:00:51]} g6 {[%emt 0:16:58]} 25. h4 {[%emt 0:14:57]} Qb6 {[%emt 0:04:33]} 26. Ka2 {[%emt 0:01:46]} h5 {[%emt 0:00:12]} 27. Qg5 {[%emt 0:02:15]} Kg7 {[%emt 0:00:11]} 28. g4 {[%emt 0:01:13]} Be7 {[%emt 0:00:31]} 29. Qc1 {[%emt 0:03:23]} hxg4 {[%emt 0:19:16]} 30. h5 {[%emt 0:01:00]} Qd6 {[%emt 0:00:16]} 31. hxg6 {[%emt 0:21:35]} f5 {[%emt 0:00:26]} 32. Rh1 {[%emt 0:01:45]} Qxg6 {[%emt 0:00:25]} 33. c4 {[%emt 0:00:57]} e4 {[%emt 0:02:28]} 34. Be2 {[%emt 0:00:21]} b6 {[%emt 0:09:05]} 35. Rdg1 {[%emt 0:05:09]} Rh8 {[%emt 0:02:56]} 36. Rxh8 {[%emt 0:00:41]} Rxh8 {[%emt 0:00:12]} 37. Qd1 {[%emt 0:00:03]} Rh2 {[%emt 0:02:05]} 38. Bxg4 {[%emt 0:01:58]} Bc5 {[%emt 0:00:11]} 39. d6 {[%emt 0:01:13]} Bxg1 {[%emt 0:00:46]} 40. d7 {[%emt 0:03:12]} Qf6 {[%emt 0:00:23]} 41. Be2 {[%emt 0:00:22]} Bd4 {[%emt 0:00:19]} 42. Qe1 {[%emt 0:00:39]} f4 {[%emt 0:01:09]} 0-1

[Event "1st Bangalore GM-Open-A 2024"]
[Site "Bangalore"]
[Date "2024.01.18"]
[Round "1.15"]
[White "Chanda, Sandipan"]
[Black "John Veny Akkarakaran"]
[Result "1/2-1/2"]
[ECO "E42"]
[WhiteElo "2486"]
[BlackElo "2112"]
[Annotator "RC"]
[PlyCount "104"]
[EventDate "2024.01.20"]
[EventType "swiss"]
[EventCountry "IND"]
[SourceTitle "playchess.com"]
[Source "ChessBase"]
[SourceQuality "1"]
[TimeControl "5400+30"]

1. d4 {[%emt 0:00:04]} e6 {[%emt 0:00:39]} 2. c4 {[%emt 0:00:24]} Nf6 {[%emt 0:00:09]} 3. Nc3 {[%emt 0:00:46]} Bb4 {[%emt 0:00:28]} 4. e3 {[%emt 0:00:12]} c5 {[%emt 0:00:39]} 5. Nge2 {[%emt 0:00:19]} d5 {[%emt 0:01:29]} 6. a3 {[%emt 0:00:28]} Ba5 {[%emt 0:00:29]} 7. dxc5 {[%emt 0:00:35]} dxc4 {[%emt 0:01:25]} 8. Qxd8+ {[%emt 0:00:18]} Bxd8 {[%emt 0:00:36]} 9. Ng3 {[%emt 0:02:36]} Nbd7 {[%emt 0:17:06]} 10. Bxc4 {[%emt 0:01:15]} Nxc5 {[%emt 0:00:28]} 11. Bd2 {[%emt 0:05:31]} Bd7 {[%emt 0:05:48]} 12. b4 {[%emt 0:09:53]} Na4 {[%emt 0:04:16]} 13. Nxa4 {[%emt 0:02:08]} Bxa4 {[%emt 0:00:29]} 14. Ke2 {[%emt 0:02:14]} Rc8 {[%emt 0:09:03]} 15. Bd3 {[%emt 0:00:48]} a6 {[%emt 0:04:19]} 16. Rac1 {[%emt 0:02:22]} Rxc1 {[%emt 0:04:54]} 17. Rxc1 {[%emt 0:00:09]} Kd7 {[%emt 0:01:18]} 18. f4 {[%emt 0:06:15]} h6 {[%emt 0:13:42]} 19. e4 {[%emt 0:03:03]} Be7 {[%emt 0:02:14]} 20. e5 {[%emt 0:07:27]} Nd5 {[%emt 0:00:52]} 21. Ne4 {[%emt 0:03:52]} Bb5 {[%emt 0:03:09]} 22. g3 {[%emt 0:14:27]} g6 {[%emt 0:11:12]} 23. Be3 {[%emt 0:01:13]} h5 {[%emt 0:04:35]} 24. Kd2 {[%emt 0:04:23]} Bxd3 {[%emt 0:03:14]} 25. Kxd3 {[%emt 0:00:02]} b6 {[%emt 0:01:37]} 26. Nd2 {[%emt 0:06:32]} Rc8 {[%emt 0:01:38]} 27. Rxc8 {[%emt 0:00:28]} Kxc8 {[%emt 0:00:02]} 28. Nb3 {[%emt 0:01:36]} Kb7 {[%emt 0:01:29]} 29. Bd2 {[%emt 0:00:23]} a5 {[%emt 0:03:18]} 30. Kc4 {[%emt 0:01:09]} axb4 {[%emt 0:00:31]} 31. axb4 {[%emt 0:00:26]} Bf8 {[%emt 0:01:12]} 32. Nd4 {[%emt 0:02:00]} Ne7 {[%emt 0:01:44]} 33. b5 {[%emt 0:06:44]} Nf5 {[%emt 0:00:49]} 34. Nf3 {[%emt 0:00:44]} Be7 {[%emt 0:00:17]} 35. Bb4 {[%emt 0:02:15]} Bd8 {[%emt 0:01:21]} 36. Kd3 {[%emt 0:00:38]} Kc7 {[%emt 0:00:30]} 37. Ke2 {[%emt 0:00:31]} Kd7 {[%emt 0:00:27]} 38. Kf2 {[%emt 0:00:15]} Ne7 {[%emt 0:00:39]} 39. Bxe7 {[%emt 0:00:49]} Bxe7 {[%emt 0:00:04]} 40. Ke3 {[%emt 0:00:22]} Bc5+ {[%emt 0:01:01]} 41. Kd3 {[%emt 0:00:40]} Ke8 {[%emt 0:00:49]} 42. Ng5 {[%emt 0:01:03]} Be7 {[%emt 0:00:38]} 43. Nh7 {[%emt 0:00:29]} Kd7 {[%emt 0:00:27]} 44. Ke4 {[%emt 0:00:16]} Ke8 {[%emt 0:00:31]} 45. h3 {[%emt 0:00:30]} Bd8 {[%emt 0:00:33]} 46. g4 {[%emt 0:00:26]} hxg4 {[%emt 0:00:10]} 47. hxg4 {[%emt 0:00:03]} Bh4 {[%emt 0:00:43]} 48. f5 {[%emt 0:00:17]} exf5+ {[%emt 0:00:25]} 49. gxf5 {[%emt 0:00:02]} gxf5+ {[%emt 0:00:04]} 50. Kxf5 {[%emt 0:00:06]} Ke7 {[%emt 0:00:09]} 51. Kg4 {[%emt 0:00:26]} Ke6 {[%emt 0:01:38]} 52. Kxh4 {[%emt 0:01:49]} Kxe5 {[%emt 0:00:05]} 1/2-1/2

[Event "1st Bangalore GM-Open-A 2024"]
[Site "Bangalore"]
[Date "2024.01.18"]
[Round "1.16"]
[White "Vijayakumar, Rishi"]
[Black "Srihari L R"]
[Result "1/2-1/2"]
[ECO "A41"]
[WhiteElo "2104"]
[BlackElo "2469"]
[Annotator "RC"]
[PlyCount "101"]
[EventDate "2024.01.20"]
[EventType "swiss"]
[EventCountry "IND"]
[SourceTitle "playchess.com"]
[Source "ChessBase"]
[SourceQuality "1"]
[TimeControl "5400+30"]

1. d4 {[%emt 0:00:02]} d6 {[%emt 0:00:29]} 2. Nf3 {[%emt 0:00:22]} g6 {[%emt 0:01:14]} 3. c4 {[%emt 0:01:34]} Bg7 {[%emt 0:00:40]} 4. Nc3 {[%emt 0:01:08]} Bg4 {[%emt 0:04:30]} 5. h3 {[%emt 0:14:28]} Bxf3 {[%emt 0:00:49]} 6. gxf3 {[%emt 0:07:01]} Nd7 {[%emt 0:10:28]} 7. f4 {[%emt 0:08:07]} Ngf6 {[%emt 0:24:39]} 8. Be3 {[%emt 0:17:25]} O-O {[%emt 0:03:57]} 9. Qd2 {[%emt 0:01:20]} e5 {[%emt 0:11:21]} 10. Bg2 {[%emt 0:05:38]} Nh5 {[%emt 0:13:44]} 11. fxe5 {[%emt 0:03:50]} dxe5 {[%emt 0:01:09]} 12. Bg5 {[%emt 0:09:14]} Qb8 {[%emt 0:07:36]} 13. Bf3 {[%emt 0:10:23]} exd4 {[%emt 0:02:26]} 14. Nd5 {[%emt 0:00:17]} Nhf6 {[%emt 0:01:48]} 15. Nxf6+ {[%emt 0:02:43]} Bxf6 {[%emt 0:00:37]} 16. Bxf6 {[%emt 0:00:12]} Nxf6 {[%emt 0:00:01]} 17. Qxd4 {[%emt 0:00:02]} Qd8 {[%emt 0:00:12]} 18. O-O-O {[%emt 0:08:07]} Qxd4 {[%emt 0:00:21]} 19. Rxd4 {[%emt 0:00:01]} c6 {[%emt 0:01:15]} 20. Rhd1 {[%emt 0:01:26]} Rfe8 {[%emt 0:00:24]} 21. b3 {[%emt 0:02:40]} Kg7 {[%emt 0:01:47]} 22. Rf4 {[%emt 0:00:48]} Rad8 {[%emt 0:01:50]} 23. Rfd4 {[%emt 0:00:44]} Rxd4 {[%emt 0:03:39]} 24. Rxd4 {[%emt 0:00:01]} g5 {[%emt 0:00:13]} 25. b4 {[%emt 0:01:52]} h5 {[%emt 0:00:27]} 26. Kd2 {[%emt 0:01:47]} Kg6 {[%emt 0:00:14]} 27. e3 {[%emt 0:01:55]} Kf5 {[%emt 0:01:06]} 28. Bd1 {[%emt 0:00:46]} g4 {[%emt 0:02:45]} 29. Rf4+ {[%emt 0:00:29]} Kg5 {[%emt 0:00:52]} 30. h4+ {[%emt 0:00:22]} Kg6 {[%emt 0:00:01]} 31. Bc2+ {[%emt 0:00:13]} Kg7 {[%emt 0:00:06]} 32. Rf5 {[%emt 0:00:40]} Re6 {[%emt 0:01:07]} 33. Ke2 {[%emt 0:00:42]} Kf8 {[%emt 0:01:43]} 34. a3 {[%emt 0:00:30]} Kg7 {[%emt 0:01:30]} 35. Rg5+ {[%emt 0:00:18]} Kf8 {[%emt 0:00:14]} 36. Rf5 {[%emt 0:00:24]} Kg7 {[%emt 0:01:56]} 37. Rg5+ {[%emt 0:00:06]} Kh6 {[%emt 0:00:01]} 38. Rf5 {[%emt 0:00:53]} b6 {[%emt 0:01:31]} 39. Bd3 {[%emt 0:00:54]} Kg7 {[%emt 0:00:28]} 40. Rg5+ {[%emt 0:00:06]} Kf8 {[%emt 0:00:01]} 41. Rf5 {[%emt 0:00:28]} c5 {[%emt 0:01:14]} 42. bxc5 {[%emt 0:00:38]} bxc5 {[%emt 0:00:01]} 43. Rxc5 {[%emt 0:00:30]} Ra6 {[%emt 0:00:01]} 44. Rf5 {[%emt 0:00:39]} Ke7 {[%emt 0:00:02]} 45. Re5+ {[%emt 0:00:29]} Kd7 {[%emt 0:01:44]} 46. c5 {[%emt 0:00:42]} Rxa3 {[%emt 0:00:02]} 47. Bb5+ {[%emt 0:00:18]} Kd8 {[%emt 0:00:03]} 48. Bc4 {[%emt 0:00:44]} g3 {[%emt 0:01:33]} 49. fxg3 {[%emt 0:00:19]} Ng4 {[%emt 0:00:01]} 50. Rxh5 {[%emt 0:00:39]} Rxe3+ {[%emt 0:00:08]} 51. Kd2 {[%emt 0:00:22]} 1/2-1/2

[Event "1st Bangalore GM-Open-A 2024"]
[Site "Bangalore"]
[Date "2024.01.18"]
[Round "1.17"]
[White "Muthaiah AL"]
[Black "Luong Phuong Hanh"]
[Result "0-1"]
[ECO "A16"]
[WhiteElo "2464"]
[BlackElo "2102"]
[Annotator "RC"]
[PlyCount "62"]
[EventDate "2024.01.20"]
[EventType "swiss"]
[EventCountry "IND"]
[SourceTitle "playchess.com"]
[Source "ChessBase"]
[SourceQuality "1"]
[TimeControl "5400+30"]

1. c4 {[%emt 0:00:40]} Nf6 {[%emt 0:00:08]} 2. Nc3 {[%emt 0:00:13]} d5 {[%emt 0:00:07]} 3. cxd5 {[%emt 0:02:13]} Nxd5 {[%emt 0:00:10]} 4. g3 {[%emt 0:00:22]} g6 {[%emt 0:00:28]} 5. Bg2 {[%emt 0:00:13]} Nb6 {[%emt 0:00:07]} 6. h4 {[%emt 0:02:12]} h6 {[%emt 0:00:36]} 7. d3 {[%emt 0:05:12]} Bg7 {[%emt 0:00:20]} 8. Be3 {[%emt 0:04:05]} Nc6 {[%emt 0:00:39]} 9. Nf3 {[%emt 0:02:07]} Nd5 {[%emt 0:01:18]} 10. Nxd5 {[%emt 0:07:16]} Qxd5 {[%emt 0:00:09]} 11. O-O {[%emt 0:00:55]} Qb5 {[%emt 0:03:10]} 12. Rb1 {[%emt 0:13:36]} Be6 {[%emt 0:04:04]} 13. b3 {[%emt 0:05:56]} Rd8 {[%emt 0:03:07]} 14. Qd2 {[%emt 0:06:56]} Qh5 {[%emt 0:07:35]} 15. Rfc1 {[%emt 0:04:01]} g5 {[%emt 0:04:03]} 16. Rc5 {[%emt 0:03:20]} Rd5 {[%emt 0:01:08]} 17. Rbc1 {[%emt 0:08:27]} Bf6 {[%emt 0:01:20]} 18. Nh2 {[%emt 0:04:23]} Rxc5 {[%emt 0:03:13]} 19. Rxc5 {[%emt 0:00:16]} Nd4 {[%emt 0:00:38]} 20. Qb4 {[%emt 0:15:00]} Nxe2+ {[%emt 0:06:09]} 21. Kh1 {[%emt 0:01:30]} b6 {[%emt 0:01:57]} 22. Bf3 {[%emt 0:08:53]} Qg6 {[%emt 0:00:10]} 23. Be4 {[%emt 0:00:44]} Qh5 {[%emt 0:04:12]} 24. Bf3 {[%emt 0:00:07]} Qg6 {[%emt 0:00:06]} 25. Be4 {[%emt 0:01:00]} Qh5 {[%emt 0:00:30]} 26. Rxc7 {[%emt 0:01:37]} gxh4 {[%emt 0:00:20]} 27. Bf3 {[%emt 0:00:38]} Qe5 {[%emt 0:01:02]} 28. Bc6+ {[%emt 0:01:23]} Kf8 {[%emt 0:00:22]} 29. Rxa7 {[%emt 0:00:08]} Qa1+ {[%emt 0:00:51]} 30. Kg2 {[%emt 0:00:07]} h3+ {[%emt 0:00:16]} 31. Kf3 {[%emt 0:00:06]} Ng1+ {[%emt 0:00:27]} 0-1

[Event "1st Bangalore GM-Open-A 2024"]
[Site "Bangalore"]
[Date "2024.01.18"]
[Round "1.18"]
[White "Deodhar, Vrushali Umesh"]
[Black "Stany, G.A."]
[Result "0-1"]
[ECO "E14"]
[WhiteElo "2100"]
[BlackElo "2459"]
[Annotator "RC"]
[PlyCount "106"]
[EventDate "2024.01.20"]
[EventType "swiss"]
[EventCountry "IND"]
[SourceTitle "playchess.com"]
[Source "ChessBase"]
[SourceQuality "1"]
[TimeControl "5400+30"]

1. c4 {[%emt 0:00:03]} b6 {[%emt 0:00:14]} 2. Nc3 {[%emt 0:00:11]} Bb7 {[%emt 0:00:06]} 3. d4 {[%emt 0:00:31]} e6 {[%emt 0:00:04]} 4. a3 {[%emt 0:00:11]} Nf6 {[%emt 0:01:09]} 5. Nf3 {[%emt 0:00:03]} d5 {[%emt 0:02:19]} 6. e3 {[%emt 0:00:09]} Nbd7 {[%emt 0:01:08]} 7. cxd5 {[%emt 0:04:18]} exd5 {[%emt 0:00:53]} 8. Bd3 {[%emt 0:00:08]} Bd6 {[%emt 0:07:01]} 9. O-O {[%emt 0:01:25]} a6 {[%emt 0:01:27]} 10. b4 {[%emt 0:09:00]} O-O {[%emt 0:00:48]} 11. Qc2 {[%emt 0:03:23]} Re8 {[%emt 0:12:38]} 12. b5 {[%emt 0:12:45]} Bf8 {[%emt 0:06:29]} 13. Bb2 {[%emt 0:05:17]} axb5 {[%emt 0:00:38]} 14. Nxb5 {[%emt 0:00:27]} c6 {[%emt 0:06:35]} 15. Nc3 {[%emt 0:00:02]} Ba6 {[%emt 0:11:02]} 16. Bxa6 {[%emt 0:02:59]} Rxa6 {[%emt 0:01:16]} 17. Ne2 {[%emt 0:00:02]} Qa8 {[%emt 0:02:02]} 18. Nf4 {[%emt 0:01:12]} Bd6 {[%emt 0:12:54]} 19. Rfc1 {[%emt 0:13:52]} c5 {[%emt 0:09:32]} 20. dxc5 {[%emt 0:00:43]} bxc5 {[%emt 0:00:09]} 21. Ne2 {[%emt 0:11:43]} Bf8 {[%emt 0:06:07]} 22. Rd1 {[%emt 0:02:38]} Ne4 {[%emt 0:04:00]} 23. Nc3 {[%emt 0:01:56]} Nxc3 {[%emt 0:01:07]} 24. Qxc3 {[%emt 0:00:18]} Nb6 {[%emt 0:00:33]} 25. Qd3 {[%emt 0:06:16]} h6 {[%emt 0:05:40]} 26. Rab1 {[%emt 0:03:52]} Nc4 {[%emt 0:03:45]} 27. Bc1 {[%emt 0:00:03]} Rd8 {[%emt 0:01:26]} 28. Ra1 {[%emt 0:04:33]} Be7 {[%emt 0:01:04]} 29. Ra2 {[%emt 0:01:18]} Bf6 {[%emt 0:00:32]} 30. h3 {[%emt 0:01:08]} Nd6 {[%emt 0:00:45]} 31. Qc2 {[%emt 0:03:49]} Ne4 {[%emt 0:01:20]} 32. Bb2 {[%emt 0:01:13]} Bxb2 {[%emt 0:00:21]} 33. Qxb2 {[%emt 0:00:01]} c4 {[%emt 0:00:44]} 34. Nd4 {[%emt 0:02:22]} Rb8 {[%emt 0:00:44]} 35. Qc1 {[%emt 0:00:11]} Rab6 {[%emt 0:00:49]} 36. Qa1 {[%emt 0:02:01]} Qa5 {[%emt 0:00:24]} 37. Rc2 {[%emt 0:00:35]} Rf6 {[%emt 0:00:30]} 38. f3 {[%emt 0:00:11]} Nc5 {[%emt 0:00:09]} 39. Ne2 {[%emt 0:02:01]} Nd3 {[%emt 0:00:30]} 40. Qd4 {[%emt 0:01:39]} Qxa3 {[%emt 0:00:26]} 41. Qxd5 {[%emt 0:00:02]} Nb4 {[%emt 0:00:11]} 42. Qe5 {[%emt 0:00:25]} Nxc2 {[%emt 0:00:34]} 43. Qxb8+ {[%emt 0:00:01]} Kh7 {[%emt 0:00:05]} 44. Qb1 {[%emt 0:03:12]} Qxe3+ {[%emt 0:00:10]} 45. Kf1 {[%emt 0:00:16]} Qb3 {[%emt 0:01:12]} 46. Qxb3 {[%emt 0:01:58]} cxb3 {[%emt 0:00:05]} 47. Rb1 {[%emt 0:00:01]} Rb6 {[%emt 0:01:23]} 48. Nc1 {[%emt 0:02:32]} b2 {[%emt 0:00:39]} 49. Nd3 {[%emt 0:00:01]} Ne3+ {[%emt 0:00:05]} 50. Kf2 {[%emt 0:00:05]} Nc4 {[%emt 0:00:03]} 51. Ke2 {[%emt 0:00:32]} Re6+ {[%emt 0:01:15]} 52. Kd1 {[%emt 0:00:44]} Rd6 {[%emt 0:00:15]} 53. Ke2 {[%emt 0:00:11]} Ra6 {[%emt 0:00:04]} 0-1